[Event "Early-Titled-Tuesday-Blitz-May-07-2024"]
[Site "Chess.com"]
[Date "2024.05.07"]
[Round "8"]
[White "littlepinkyboy"]
[Black "XDPS"]
[Result "0-1"]
[WhiteElo "2656"]
[BlackElo "2837"]
[TimeControl "180+1"]
[EndTime "9:35:28 PDT"]
[Termination "XDPS won by resignation"]

1. e4 {[%clk 0:03:00.9]} 1... c5 {[%clk 0:02:59]} 2. Nf3 {[%clk 0:03:00.7]} 2...
e6 {[%clk 0:02:59]} 3. d4 {[%clk 0:03:01.1]} 3... cxd4 {[%clk 0:02:59.9]} 4.
Nxd4 {[%clk 0:03:01.3]} 4... a6 {[%clk 0:03:00.3]} 5. Bd3 {[%clk 0:03:00.6]}
5... Bc5 {[%clk 0:03:00]} 6. Nb3 {[%clk 0:02:58.9]} 6... Ba7 {[%clk 0:03:00.4]}
7. c4 {[%clk 0:02:58.7]} 7... Nc6 {[%clk 0:03:00.8]} 8. O-O {[%clk 0:02:58.4]}
8... Nf6 {[%clk 0:03:01.3]} 9. Nc3 {[%clk 0:02:58.5]} 9... d6 {[%clk 0:03:01.9]}
10. Qe2 {[%clk 0:02:58.8]} 10... O-O {[%clk 0:03:02.5]} 11. Be3 {[%clk
0:02:59.1]} 11... e5 {[%clk 0:03:02.9]} 12. Bxa7 {[%clk 0:02:47.1]} 12... Rxa7
{[%clk 0:03:02.8]} 13. Nd5 {[%clk 0:02:47.1]} 13... Be6 {[%clk 0:03:01.1]} 14.
Rfd1 {[%clk 0:02:40]} 14... Nd7 {[%clk 0:03:00.9]} 15. f4 {[%clk 0:02:31.4]}
15... exf4 {[%clk 0:02:56.9]} 16. Nxf4 {[%clk 0:02:30.3]} 16... Nde5 {[%clk
0:02:57.1]} 17. c5 {[%clk 0:02:12.9]} 17... Bg4 {[%clk 0:02:54.7]} 18. Qf2
{[%clk 0:02:01.1]} 18... Bxd1 {[%clk 0:02:54.5]} 19. Rxd1 {[%clk 0:02:02]} 19...
dxc5 {[%clk 0:02:51.7]} 20. Be2 {[%clk 0:01:45.1]} 20... Qg5 {[%clk 0:02:25.8]}
21. Nxc5 {[%clk 0:01:36.5]} 21... Ng4 {[%clk 0:02:10.4]} 22. Rd5 {[%clk
0:01:04.5]} 22... Qxd5 {[%clk 0:00:29.5]} 23. exd5 {[%clk 0:01:05.4]} 23... Nxf2
{[%clk 0:00:29.9]} 24. dxc6 {[%clk 0:01:03.9]} 24... bxc6 {[%clk 0:00:30.8]} 25.
Kxf2 {[%clk 0:01:03.4]} 25... a5 {[%clk 0:00:31.7]} 26. a4 {[%clk 0:00:46.6]}
26... Rb8 {[%clk 0:00:30.2]} 27. Bc4 {[%clk 0:00:45.7]} 27... Rxb2+ {[%clk
0:00:29.8]} 28. Kf3 {[%clk 0:00:39.8]} 28... Rb4 {[%clk 0:00:30.7]} 29. Bd3
{[%clk 0:00:30.6]} 29... g6 {[%clk 0:00:30.7]} 30. Be4 {[%clk 0:00:26]} 30...
Re7 {[%clk 0:00:20.6]} 31. Nfd3 {[%clk 0:00:19.8]} 31... Rc4 {[%clk 0:00:18]}
32. g4 {[%clk 0:00:12.3]} 32... Kg7 {[%clk 0:00:17.5]} 33. g5 {[%clk 0:00:09.1]}
33... h6 {[%clk 0:00:17.4]} 34. h4 {[%clk 0:00:09.8]} 34... hxg5 {[%clk
0:00:17.4]} 35. hxg5 {[%clk 0:00:10.7]} 35... Re8 {[%clk 0:00:14.9]} 36. Kf4
{[%clk 0:00:05]} 36... Rh8 {[%clk 0:00:13.1]} 37. Kg3 {[%clk 0:00:02.2]} 37...
Rh5 {[%clk 0:00:13]} 38. Kg4 {[%clk 0:00:01.9]} 38... Rh2 {[%clk 0:00:12.7]} 39.
Kg3 {[%clk 0:00:01.9]} 39... Rd2 {[%clk 0:00:13]} 40. Bxc6 {[%clk 0:00:01.2]}
40... Rxd3+ {[%clk 0:00:12.2]} 41. Nxd3 {[%clk 0:00:02.1]} 41... Rxc6 {[%clk
0:00:12.9]} 42. Ne5 {[%clk 0:00:02.8]} 42... Rc5 {[%clk 0:00:12.6]} 43. Kf4
{[%clk 0:00:03.7]} 43... Rd5 {[%clk 0:00:12.6]} 44. Ke4 {[%clk 0:00:03.8]} 44...
Rd1 {[%clk 0:00:12.9]} 45. Nd7 {[%clk 0:00:02.1]} 45... Ra1 {[%clk 0:00:12.1]}
46. Nc5 {[%clk 0:00:01.8]} 46... Rg1 {[%clk 0:00:12.5]} 47. Nb3 {[%clk
0:00:01.2]} 47... Rxg5 {[%clk 0:00:12]} 48. Kf4 {[%clk 0:00:02]} 48... Rh5
{[%clk 0:00:12.3]} 49. Kg4 {[%clk 0:00:01.9]} 49... Rd5 {[%clk 0:00:12.3]} 50.
Kf4 {[%clk 0:00:02.2]} 50... f5 {[%clk 0:00:12.9]} 51. Ke3 {[%clk 0:00:02.3]}
51... Kf6 {[%clk 0:00:13.2]} 52. Nc1 {[%clk 0:00:02.6]} 52... Ke5 {[%clk
0:00:13.5]} 53. Ne2 {[%clk 0:00:03.3]} 53... g5 {[%clk 0:00:13.6]} 54. Nc3
{[%clk 0:00:01.8]} 54... f4+ {[%clk 0:00:14]} 55. Ke2 {[%clk 0:00:01.6]} 55...
g4 {[%clk 0:00:14.5]} 56. Nxd5 {[%clk 0:00:01.5]} 56... Kxd5 {[%clk 0:00:14.8]}
57. Kf2 {[%clk 0:00:02.4]} 57... Kc4 {[%clk 0:00:15.2]} 58. Ke2 {[%clk
0:00:03.3]} 58... Kb4 {[%clk 0:00:15.7]} 0-1

[Event "Early-Titled-Tuesday-Blitz-May-07-2024"]
[Site "Chess.com"]
[Date "2024.05.07"]
[Round "8"]
[White "HajiyevKanan"]
[Black "Gareth-Bale11"]
[Result "0-1"]
[WhiteElo "2578"]
[BlackElo "2896"]
[TimeControl "180+1"]
[EndTime "9:35:29 PDT"]
[Termination "Gareth-Bale11 won on time"]

1. d4 {[%clk 0:03:00.9]} 1... Nf6 {[%clk 0:02:59.5]} 2. Nf3 {[%clk 0:02:57]}
2... d5 {[%clk 0:02:58.8]} 3. c4 {[%clk 0:02:57.5]} 3... e6 {[%clk 0:02:58.6]}
4. cxd5 {[%clk 0:02:58.4]} 4... exd5 {[%clk 0:02:58.4]} 5. Nc3 {[%clk
0:02:59.3]} 5... Bb4 {[%clk 0:02:58.2]} 6. Qa4+ {[%clk 0:02:54.7]} 6... Nc6
{[%clk 0:02:58]} 7. Bg5 {[%clk 0:02:52.4]} 7... h6 {[%clk 0:02:57.8]} 8. Bxf6
{[%clk 0:02:52.7]} 8... Qxf6 {[%clk 0:02:58.7]} 9. e3 {[%clk 0:02:53.3]} 9...
O-O {[%clk 0:02:59.2]} 10. a3 {[%clk 0:02:52.4]} 10... Bxc3+ {[%clk 0:02:53.5]}
11. bxc3 {[%clk 0:02:53.3]} 11... Qg6 {[%clk 0:02:49.4]} 12. Be2 {[%clk
0:02:15.3]} 12... Qxg2 {[%clk 0:02:42.4]} 13. Rg1 {[%clk 0:02:15.7]} 13... Qh3
{[%clk 0:02:42]} 14. Rg3 {[%clk 0:02:16.4]} 14... Qf5 {[%clk 0:02:39.5]} 15.
O-O-O {[%clk 0:02:13.7]} 15... Qf6 {[%clk 0:02:19.2]} 16. Rdg1 {[%clk 0:02:12]}
16... g6 {[%clk 0:02:17.8]} 17. Bd3 {[%clk 0:02:08]} 17... Ne7 {[%clk
0:02:09.9]} 18. Qc2 {[%clk 0:01:58.6]} 18... Bf5 {[%clk 0:01:59.8]} 19. Ne5
{[%clk 0:01:51.2]} 19... Kg7 {[%clk 0:01:55.6]} 20. f4 {[%clk 0:01:46.4]} 20...
c5 {[%clk 0:01:47.6]} 21. h4 {[%clk 0:01:39.4]} 21... c4 {[%clk 0:01:24]} 22.
Bxf5 {[%clk 0:01:35.5]} 22... Nxf5 {[%clk 0:01:23.1]} 23. Nd7 {[%clk 0:01:28.1]}
23... Qe7 {[%clk 0:01:17]} 24. Qxf5 {[%clk 0:01:25.4]} 24... Qxa3+ {[%clk
0:01:09.3]} 25. Kd2 {[%clk 0:01:18.9]} 25... Qb2+ {[%clk 0:01:07]} 26. Qc2
{[%clk 0:01:18.9]} 26... Qxc2+ {[%clk 0:00:58.2]} 27. Kxc2 {[%clk 0:01:19.8]}
27... Rfe8 {[%clk 0:00:43.2]} 28. Ne5 {[%clk 0:01:18.5]} 28... h5 {[%clk
0:00:37.2]} 29. f5 {[%clk 0:01:17.1]} 29... b5 {[%clk 0:00:37.3]} 30. Kd2 {[%clk
0:01:10]} 30... a5 {[%clk 0:00:36.4]} 31. fxg6 {[%clk 0:01:10.3]} 31... f6
{[%clk 0:00:36.4]} 32. Nf7 {[%clk 0:00:58.3]} 32... Ra6 {[%clk 0:00:34.2]} 33.
Rb1 {[%clk 0:00:51.1]} 33... Rb6 {[%clk 0:00:33.9]} 34. Ra1 {[%clk 0:00:47]}
34... Ra6 {[%clk 0:00:24.4]} 35. Rb1 {[%clk 0:00:46.8]} 35... Rb6 {[%clk
0:00:24.4]} 36. Rf1 {[%clk 0:00:44]} 36... Re4 {[%clk 0:00:09.9]} 37. Rf5 {[%clk
0:00:30.3]} 37... Rxh4 {[%clk 0:00:09.7]} 38. Rxd5 {[%clk 0:00:31.1]} 38... Rg4
{[%clk 0:00:10.1]} 39. Rh3 {[%clk 0:00:15.7]} 39... Rg2+ {[%clk 0:00:08.6]} 40.
Kc1 {[%clk 0:00:15.5]} 40... b4 {[%clk 0:00:09.5]} 41. Rxa5 {[%clk 0:00:14.1]}
41... bxc3 {[%clk 0:00:09.1]} 42. Rhxh5 {[%clk 0:00:07.2]} 42... c2 {[%clk
0:00:08.5]} 43. Ra1 {[%clk 0:00:03]} 43... Kxg6 {[%clk 0:00:08.8]} 44. Rh1
{[%clk 0:00:02.4]} 44... Kxf7 {[%clk 0:00:08.9]} 45. Ra7+ {[%clk 0:00:02.1]}
45... Ke6 {[%clk 0:00:08.8]} 46. Ra1 {[%clk 0:00:02.8]} 46... Rb3 {[%clk
0:00:07.5]} 47. Re1 {[%clk 0:00:03.4]} 47... f5 {[%clk 0:00:07]} 48. e4 {[%clk
0:00:02.2]} 48... fxe4 {[%clk 0:00:07.1]} 49. Rxe4+ {[%clk 0:00:02.9]} 49... Kd5
{[%clk 0:00:07.6]} 50. Re1 {[%clk 0:00:03.6]} 50... Kxd4 {[%clk 0:00:07.6]} 51.
Rf1 {[%clk 0:00:03.9]} 51... Re2 {[%clk 0:00:07.1]} 52. Rg1 {[%clk 0:00:04.2]}
52... Rd3 {[%clk 0:00:07.1]} 53. Rf1 {[%clk 0:00:03.9]} 53... Rg2 {[%clk
0:00:07.2]} 54. Re1 {[%clk 0:00:04.2]} 54... Rd1+ {[%clk 0:00:07.2]} 55. Rxd1+
{[%clk 0:00:04.5]} 55... cxd1=Q+ {[%clk 0:00:07.8]} 56. Kxd1 {[%clk 0:00:05.2]}
56... Rg1+ {[%clk 0:00:08.3]} 0-1

[Event "Early-Titled-Tuesday-Blitz-May-07-2024"]
[Site "Chess.com"]
[Date "2024.05.07"]
[Round "8"]
[White "Thjop"]
[Black "CSB7"]
[Result "1/2-1/2"]
[WhiteElo "2607"]
[BlackElo "2766"]
[TimeControl "180+1"]
[EndTime "9:35:32 PDT"]
[Termination "Game drawn by repetition"]

1. e4 {[%clk 0:02:57.6]} 1... e5 {[%clk 0:03:00]} 2. Nf3 {[%clk 0:02:57.5]} 2...
Nf6 {[%clk 0:02:59.4]} 3. Nxe5 {[%clk 0:02:55.1]} 3... d6 {[%clk 0:02:58.7]} 4.
Nf3 {[%clk 0:02:55.3]} 4... Nxe4 {[%clk 0:02:59]} 5. d4 {[%clk 0:02:54.8]} 5...
d5 {[%clk 0:02:59.3]} 6. Bd3 {[%clk 0:02:54.6]} 6... Bd6 {[%clk 0:02:59.9]} 7.
Nbd2 {[%clk 0:02:53.6]} 7... Bf5 {[%clk 0:02:50.3]} 8. O-O {[%clk 0:02:46.2]}
8... O-O {[%clk 0:02:50.3]} 9. Re1 {[%clk 0:02:43.2]} 9... Re8 {[%clk
0:02:45.8]} 10. Ne5 {[%clk 0:02:23]} 10... Nd7 {[%clk 0:02:06.1]} 11. f3 {[%clk
0:01:47]} 11... Nxe5 {[%clk 0:01:51.2]} 12. fxe4 {[%clk 0:01:28.8]} 12... Nxd3
{[%clk 0:01:20.8]} 13. cxd3 {[%clk 0:01:28]} 13... dxe4 {[%clk 0:01:09.5]} 14.
dxe4 {[%clk 0:01:28.9]} 14... Bg6 {[%clk 0:01:09.4]} 15. g3 {[%clk 0:01:08.3]}
15... Bb4 {[%clk 0:01:03.7]} 16. d5 {[%clk 0:00:56.5]} 16... c6 {[%clk
0:00:55.7]} 17. Qb3 {[%clk 0:00:48.8]} 17... Bc5+ {[%clk 0:00:44.1]} 18. Kg2
{[%clk 0:00:42]} 18... cxd5 {[%clk 0:00:44]} 19. Qxb7 {[%clk 0:00:41.8]} 19...
Rb8 {[%clk 0:00:38.9]} 20. Qc6 {[%clk 0:00:36.4]} 20... Rc8 {[%clk 0:00:38.1]}
21. Qb5 {[%clk 0:00:36]} 21... dxe4 {[%clk 0:00:35]} 22. Nb3 {[%clk 0:00:20.8]}
22... Bb6 {[%clk 0:00:21.5]} 23. Be3 {[%clk 0:00:20.9]} 23... Bxe3 {[%clk
0:00:19.1]} 24. Rxe3 {[%clk 0:00:21.8]} 24... Rc2+ {[%clk 0:00:18.6]} 25. Re2
{[%clk 0:00:21.9]} 25... Rxe2+ {[%clk 0:00:11]} 26. Qxe2 {[%clk 0:00:22.8]}
26... e3 {[%clk 0:00:11.2]} 27. Re1 {[%clk 0:00:22.3]} 27... Qd5+ {[%clk
0:00:08.5]} 28. Kg1 {[%clk 0:00:22.6]} 28... h5 {[%clk 0:00:08.9]} 29. Qa6
{[%clk 0:00:16.4]} 29... Bd3 {[%clk 0:00:03.9]} 30. Qa4 {[%clk 0:00:04.5]} 30...
Re6 {[%clk 0:00:02.4]} 31. Qd4 {[%clk 0:00:03.8]} 31... Qf5 {[%clk 0:00:02.5]}
32. Qf4 {[%clk 0:00:01.7]} 32... Qxf4 {[%clk 0:00:02.1]} 33. gxf4 {[%clk
0:00:02.5]} 33... e2 {[%clk 0:00:02.2]} 34. Kf2 {[%clk 0:00:02.7]} 34... Re4
{[%clk 0:00:02.7]} 35. Kf3 {[%clk 0:00:02.6]} 35... f5 {[%clk 0:00:03.2]} 36.
Nc1 {[%clk 0:00:02.6]} 36... Bc4 {[%clk 0:00:03.6]} 37. b3 {[%clk 0:00:02.8]}
37... Ba6 {[%clk 0:00:03.1]} 38. Nxe2 {[%clk 0:00:03.3]} 38... Bb7 {[%clk
0:00:02]} 39. Kf2 {[%clk 0:00:03.4]} 39... Kf7 {[%clk 0:00:02.2]} 40. Rc1 {[%clk
0:00:03.3]} 40... Ba6 {[%clk 0:00:02.3]} 41. Rc7+ {[%clk 0:00:03.5]} 41... Kg6
{[%clk 0:00:02.6]} 42. Ng3 {[%clk 0:00:03.5]} 42... Rxf4+ {[%clk 0:00:03.2]} 43.
Ke3 {[%clk 0:00:04]} 43... Rg4 {[%clk 0:00:02.9]} 44. Rc6+ {[%clk 0:00:04.5]}
44... Kg5 {[%clk 0:00:03.3]} 45. Rxa6 {[%clk 0:00:05]} 45... f4+ {[%clk
0:00:03.5]} 46. Kf3 {[%clk 0:00:05]} 46... fxg3 {[%clk 0:00:02.9]} 47. hxg3
{[%clk 0:00:05.9]} 47... Rd4 {[%clk 0:00:01.5]} 48. Ra5+ {[%clk 0:00:05.7]}
48... Kh6 {[%clk 0:00:01.7]} 49. Rxa7 {[%clk 0:00:06.2]} 49... g5 {[%clk
0:00:01.6]} 50. a4 {[%clk 0:00:05.9]} 50... Rd3+ {[%clk 0:00:01.6]} 51. Kg2
{[%clk 0:00:05.5]} 51... Rxb3 {[%clk 0:00:02.5]} 52. a5 {[%clk 0:00:06]} 52...
Ra3 {[%clk 0:00:03.1]} 53. a6 {[%clk 0:00:06.4]} 53... h4 {[%clk 0:00:03.4]} 54.
gxh4 {[%clk 0:00:06.3]} 54... gxh4 {[%clk 0:00:04.3]} 55. Kh2 {[%clk 0:00:06.6]}
55... Kg6 {[%clk 0:00:04.5]} 56. Ra8 {[%clk 0:00:07.1]} 56... Kh7 {[%clk
0:00:04.4]} 57. Kg2 {[%clk 0:00:07.4]} 57... Kg7 {[%clk 0:00:04.4]} 58. Kh2
{[%clk 0:00:07.6]} 58... Kh7 {[%clk 0:00:04.9]} 59. Kg2 {[%clk 0:00:07.9]} 59...
Kg7 {[%clk 0:00:05.3]} 60. a7 {[%clk 0:00:08.4]} 60... h3+ {[%clk 0:00:05.2]}
61. Kh2 {[%clk 0:00:08.6]} 61... Kh7 {[%clk 0:00:05.7]} 62. Kg1 {[%clk
0:00:08.3]} 62... Kg7 {[%clk 0:00:05.8]} 63. Kh2 {[%clk 0:00:08.7]} 63... Kh7
{[%clk 0:00:06.1]} 64. Kg1 {[%clk 0:00:08.7]} 64... Kg7 {[%clk 0:00:06.4]} 65.
Kh2 {[%clk 0:00:09.2]} 1/2-1/2

[Event "Early-Titled-Tuesday-Blitz-May-07-2024"]
[Site "Chess.com"]
[Date "2024.05.07"]
[Round "8"]
[White "Lady_Nika"]
[Black "Guldona_2007"]
[Result "1-0"]
[WhiteElo "2481"]
[BlackElo "2189"]
[TimeControl "180+1"]
[EndTime "9:35:33 PDT"]
[Termination "Lady_Nika won on time"]

1. g4 {[%clk 0:03:00.9]} 1... d5 {[%clk 0:02:55.2]} 2. h3 {[%clk 0:03:00.4]}
2... c5 {[%clk 0:02:54.3]} 3. e3 {[%clk 0:02:58.8]} 3... Nc6 {[%clk 0:02:54.1]}
4. d4 {[%clk 0:02:58.5]} 4... g6 {[%clk 0:02:43.9]} 5. Bg2 {[%clk 0:02:57.1]}
5... cxd4 {[%clk 0:02:36]} 6. exd4 {[%clk 0:02:56.9]} 6... Bg7 {[%clk
0:02:36.5]} 7. c3 {[%clk 0:02:56.8]} 7... e6 {[%clk 0:02:32.9]} 8. Ne2 {[%clk
0:02:55.6]} 8... Nge7 {[%clk 0:02:32.8]} 9. O-O {[%clk 0:02:54.9]} 9... O-O
{[%clk 0:02:32.6]} 10. f4 {[%clk 0:02:52]} 10... b5 {[%clk 0:02:24.1]} 11. a3
{[%clk 0:02:51.2]} 11... a5 {[%clk 0:02:22.8]} 12. Be3 {[%clk 0:02:50.7]} 12...
Rb8 {[%clk 0:02:22.7]} 13. Nd2 {[%clk 0:02:50]} 13... Ba6 {[%clk 0:02:20.1]} 14.
b4 {[%clk 0:02:49.3]} 14... a4 {[%clk 0:02:17]} 15. Nf3 {[%clk 0:02:44.3]} 15...
Bc8 {[%clk 0:02:15.7]} 16. Ne5 {[%clk 0:02:42]} 16... Bd7 {[%clk 0:02:13.7]} 17.
Nd3 {[%clk 0:02:41]} 17... Nc8 {[%clk 0:02:12.4]} 18. Nc5 {[%clk 0:02:32.9]}
18... Nd6 {[%clk 0:02:12.5]} 19. Ng3 {[%clk 0:02:29.8]} 19... f5 {[%clk
0:02:00.5]} 20. Qe2 {[%clk 0:02:23.8]} 20... Ne4 {[%clk 0:01:56.7]} 21. Ngxe4
{[%clk 0:02:21.9]} 21... fxe4 {[%clk 0:01:51.3]} 22. Rf2 {[%clk 0:02:14.1]}
22... Na7 {[%clk 0:01:49.2]} 23. Raf1 {[%clk 0:02:10.6]} 23... Nc8 {[%clk
0:01:47.6]} 24. h4 {[%clk 0:02:07.9]} 24... Nd6 {[%clk 0:01:44.7]} 25. h5 {[%clk
0:02:02]} 25... gxh5 {[%clk 0:01:42]} 26. gxh5 {[%clk 0:02:01.8]} 26... Nf5
{[%clk 0:01:42]} 27. Qd2 {[%clk 0:01:48.3]} 27... Kh8 {[%clk 0:01:32.3]} 28. Bh3
{[%clk 0:01:45.3]} 28... Qe7 {[%clk 0:01:25.2]} 29. Bxf5 {[%clk 0:01:42.9]}
29... exf5 {[%clk 0:01:25.1]} 30. Kh1 {[%clk 0:01:40.5]} 30... Be8 {[%clk
0:01:19.6]} 31. Rh2 {[%clk 0:01:39.2]} 31... Bh6 {[%clk 0:01:15.2]} 32. Qe2
{[%clk 0:01:34.5]} 32... Bf7 {[%clk 0:01:10.6]} 33. Rg1 {[%clk 0:01:30.7]} 33...
Rg8 {[%clk 0:01:10.2]} 34. Rxg8+ {[%clk 0:01:28.4]} 34... Bxg8 {[%clk
0:01:10.1]} 35. Qg2 {[%clk 0:01:15.3]} 35... Qd6 {[%clk 0:01:07.7]} 36. Qg3
{[%clk 0:01:04.7]} 36... Bf7 {[%clk 0:01:06.8]} 37. Rf2 {[%clk 0:01:03.1]} 37...
Qf6 {[%clk 0:00:59.6]} 38. Nd7 {[%clk 0:00:55]} 38... Qd8 {[%clk 0:00:57]} 39.
Nxb8 {[%clk 0:00:54.6]} 39... Qxb8 {[%clk 0:00:56.9]} 40. Qh4 {[%clk 0:00:54.9]}
40... Qd6 {[%clk 0:00:52.2]} 41. Rg2 {[%clk 0:00:52.9]} 41... Be8 {[%clk
0:00:37.4]} 42. Qg3 {[%clk 0:00:42.9]} 42... Bf7 {[%clk 0:00:36.8]} 43. Qh3
{[%clk 0:00:41]} 43... Qf6 {[%clk 0:00:36.1]} 44. Bf2 {[%clk 0:00:31.2]} 44...
Bxf4 {[%clk 0:00:30.6]} 45. Bh4 {[%clk 0:00:30.6]} 45... Qe6 {[%clk 0:00:29.4]}
46. Rf2 {[%clk 0:00:28.8]} 46... Bh6 {[%clk 0:00:19.6]} 47. Rxf5 {[%clk
0:00:26.1]} 47... Bg7 {[%clk 0:00:17.3]} 48. Qf1 {[%clk 0:00:23.2]} 48... Kg8
{[%clk 0:00:15.9]} 49. Bf6 {[%clk 0:00:19.5]} 49... Bxf6 {[%clk 0:00:07.3]} 50.
Rxf6 {[%clk 0:00:20.4]} 50... Qe7 {[%clk 0:00:07.5]} 51. Qg2+ {[%clk 0:00:19.3]}
51... Kh8 {[%clk 0:00:07.1]} 52. Rf5 {[%clk 0:00:19.5]} 52... e3 {[%clk
0:00:05.8]} 53. Re5 {[%clk 0:00:18.3]} 53... Qf6 {[%clk 0:00:04.6]} 54. Rxe3
{[%clk 0:00:16.5]} 54... Qh4+ {[%clk 0:00:02]} 55. Qh2 {[%clk 0:00:16.8]} 1-0

[Event "Early-Titled-Tuesday-Blitz-May-07-2024"]
[Site "Chess.com"]
[Date "2024.05.07"]
[Round "8"]
[White "dzhumagaliev"]
[Black "AttilaTurzo"]
[Result "1-0"]
[WhiteElo "2845"]
[BlackElo "2462"]
[TimeControl "180+1"]
[EndTime "9:35:35 PDT"]
[Termination "dzhumagaliev won on time"]

1. Nf3 {[%clk 0:02:59.4]} 1... d5 {[%clk 0:02:59.8]} 2. g3 {[%clk 0:03:00.3]}
2... c6 {[%clk 0:03:00.3]} 3. Bg2 {[%clk 0:03:01.2]} 3... Bf5 {[%clk 0:02:59.6]}
4. O-O {[%clk 0:03:02.1]} 4... Nd7 {[%clk 0:02:58]} 5. d3 {[%clk 0:03:03]} 5...
e5 {[%clk 0:02:56.5]} 6. Nbd2 {[%clk 0:03:03.9]} 6... Ngf6 {[%clk 0:02:55.5]} 7.
Re1 {[%clk 0:03:04.3]} 7... h6 {[%clk 0:02:54.1]} 8. e4 {[%clk 0:03:04.8]} 8...
dxe4 {[%clk 0:02:54.4]} 9. dxe4 {[%clk 0:03:04.5]} 9... Be6 {[%clk 0:02:54.6]}
10. c3 {[%clk 0:03:01.3]} 10... a5 {[%clk 0:02:53.6]} 11. a4 {[%clk 0:03:01.4]}
11... Bc5 {[%clk 0:02:51.6]} 12. Nf1 {[%clk 0:03:00.7]} 12... Ng4 {[%clk
0:02:49]} 13. Re2 {[%clk 0:02:54.9]} 13... Qb6 {[%clk 0:02:44.5]} 14. Ne3 {[%clk
0:02:48.5]} 14... Nxe3 {[%clk 0:02:41.3]} 15. Bxe3 {[%clk 0:02:49]} 15... Bxe3
{[%clk 0:02:38.3]} 16. Rxe3 {[%clk 0:02:48.3]} 16... O-O {[%clk 0:02:35.2]} 17.
Qc2 {[%clk 0:02:39.3]} 17... Rfd8 {[%clk 0:02:29.3]} 18. Re2 {[%clk 0:02:31.3]}
18... Bg4 {[%clk 0:02:04]} 19. h3 {[%clk 0:02:29.3]} 19... Bxf3 {[%clk
0:01:51.6]} 20. Bxf3 {[%clk 0:02:30.2]} 20... Nc5 {[%clk 0:01:52]} 21. Kg2
{[%clk 0:02:24.4]} 21... Qb3 {[%clk 0:01:43.3]} 22. Qxb3 {[%clk 0:02:18.1]}
22... Nxb3 {[%clk 0:01:43.2]} 23. Ra3 {[%clk 0:02:18.6]} 23... Nc5 {[%clk
0:01:35.5]} 24. Rc2 {[%clk 0:02:13.5]} 24... Ra6 {[%clk 0:01:23]} 25. Be2 {[%clk
0:02:08.4]} 25... Rb6 {[%clk 0:01:22.7]} 26. f3 {[%clk 0:02:04.5]} 26... Rb3
{[%clk 0:01:13.6]} 27. Ra1 {[%clk 0:02:03.2]} 27... Kf8 {[%clk 0:01:09.2]} 28.
Kf2 {[%clk 0:02:03.1]} 28... Ke7 {[%clk 0:01:09]} 29. Ke3 {[%clk 0:01:55.7]}
29... Rb6 {[%clk 0:01:01.9]} 30. Bc4 {[%clk 0:01:50.2]} 30... Nb3 {[%clk
0:00:47.5]} 31. Ra3 {[%clk 0:01:35]} 31... Nc5 {[%clk 0:00:47]} 32. Ke2 {[%clk
0:01:35.2]} 32... g5 {[%clk 0:00:42.9]} 33. h4 {[%clk 0:01:17.4]} 33... gxh4
{[%clk 0:00:40.1]} 34. gxh4 {[%clk 0:01:18.3]} 34... Rg8 {[%clk 0:00:40.5]} 35.
Kf2 {[%clk 0:01:19]} 35... Ne6 {[%clk 0:00:39.1]} 36. Bf1 {[%clk 0:00:50.5]}
36... Nf4 {[%clk 0:00:35.9]} 37. Ra1 {[%clk 0:00:41.6]} 37... c5 {[%clk
0:00:34.1]} 38. Rd1 {[%clk 0:00:34.6]} 38... Rd8 {[%clk 0:00:28.6]} 39. Rxd8
{[%clk 0:00:31.9]} 39... Kxd8 {[%clk 0:00:29.5]} 40. Bc4 {[%clk 0:00:30.5]}
40... Ke7 {[%clk 0:00:27.2]} 41. Rd2 {[%clk 0:00:25.7]} 41... Rd6 {[%clk
0:00:24.6]} 42. Rxd6 {[%clk 0:00:25.5]} 42... Kxd6 {[%clk 0:00:25.5]} 43. Bxf7
{[%clk 0:00:24.3]} 43... Nd3+ {[%clk 0:00:24.8]} 44. Ke3 {[%clk 0:00:24.4]}
44... Nxb2 {[%clk 0:00:24.4]} 45. Bb3 {[%clk 0:00:24.3]} 45... c4 {[%clk
0:00:18.9]} 46. Bc2 {[%clk 0:00:24.4]} 46... b5 {[%clk 0:00:13.1]} 47. axb5
{[%clk 0:00:25.3]} 47... a4 {[%clk 0:00:13.6]} 48. Bb1 {[%clk 0:00:26]} 48... a3
{[%clk 0:00:07.5]} 49. f4 {[%clk 0:00:23.9]} 49... exf4+ {[%clk 0:00:07.2]} 50.
Kxf4 {[%clk 0:00:24.2]} 50... Nd3+ {[%clk 0:00:07.1]} 51. Ke3 {[%clk 0:00:23.6]}
51... Kc5 {[%clk 0:00:04.3]} 52. Ba2 {[%clk 0:00:15.2]} 52... Nc1 {[%clk
0:00:03.9]} 53. e5 {[%clk 0:00:10.9]} 53... Nxa2 {[%clk 0:00:02.7]} 54. e6
{[%clk 0:00:11.1]} 54... Kd6 {[%clk 0:00:02.5]} 55. b6 {[%clk 0:00:11.8]} 55...
Nxc3 {[%clk 0:00:01.4]} 56. b7 {[%clk 0:00:12.3]} 1-0